bitfinex/quotes_ETHUSD_20260302
["timestamp","ask_amount","ask_price","bid_price","bid_amount"]
[1772452384898,7.56715022,1952.1,1951.5,6.02520835]
[1772452385098,7.56715022,1952.1,1951.5,1.28204309]
[1772452385328,7.56715022,1952.1,1951.5,0.001]
[1772452385926,7.56715022,1952.1,1951.5,1.2820479]
[1772452386130,7.56715022,1952.1,1951.5,0.001]
[1772452391738,7.56715022,1952.1,1951.2,1.28123735]
[1772452392107,7.56715022,1952.1,1951.2,7.3054457]
[1772452392311,7.56715022,1952.1,1951.6,0.001]
[1772452392643,6.28447407,1951.9,1951.6,0.001]
[1772452392938,6.28447407,1951.7,1951.6,0.001]
[1772452393718,6.11062631,1951.5,1950.7,0.001]
[1772452393921,6.11062631,1951.5,1950.6,0.001]
[1772452393922,6.11062631,1951.1,1950.6,0.001]
[1772452394109,6.11062631,1951.1,1950.7,0.00253886]
[1772452394333,7.39169215,1951.5,1950.7,6.20883169]
[1772452394539,8.02811884,1951.4,1950.9,6.20629283]
[1772452394767,3.06173269,1951.3,1950.9,6.20629283]
[1772452394965,3.05919383,1951.2,1951.0,6.20883169]
[1772452395171,2.517,1951.5,1951.0,6.20629283]
[1772452395846,2.517,1951.5,1951.2,6.20629283]
[1772452398378,2.517,1951.5,1951.2,7.48752827]
[1772452398598,2.517,1951.5,1951.2,6.20629283]
[1772452398771,2.517,1951.5,1951.2,7.4875381]
[1772452399468,3.73019538,1951.9,1951.2,7.4875381]
[1772452399671,2.518,1951.8,1951.2,7.4875381]
[1772452399867,8.47344124,1951.8,1951.2,7.48754993]
[1772452401087,9.75435164,1951.8,1951.2,7.48754993]
[1772452404493,9.75435164,1951.8,1951.3,0.001]
[1772452405190,1.2809104,1951.8,1951.4,6.11860791]
[1772452405371,2.524,1951.7,1951.4,6.11860791]
[1772452407089,3.05745347,1951.6,1951.4,6.11860791]
[1772452408198,3.05745347,1951.5,1951.4,6.11860791]
[1772452408395,3.05745347,1951.6,1951.4,6.11860791]
[1772452408699,3.05745347,1951.5,1951.4,6.11860791]
[1772452408897,3.05745347,1951.5,1951.3,0.001]
[1772452409097,9.01505187,1951.4,1951.0,6.11960791]
[1772452409396,9.01505187,1951.4,1951.0,0.001]
[1772452409397,11.54305187,1951.3,1951.0,0.001]
[1772452409600,3.05961063,1951.2,1951.0,0.001]
[1772452409897,2.528,1951.3,1951.0,0.001]
[1772452410195,2.529,1951.4,1951.1,6.11860791]
[1772452411673,5.95544124,1951.3,1951.0,0.001]
[1772452412994,2.529,1951.4,1951.0,7.40099814]
[1772452413202,7.23634914,1951.8,1951.0,7.40099814]
[1772452413374,2.53,1951.7,1951.0,7.40099814]
[1772452414383,7.23634914,1951.8,1951.0,7.40099814]
[1772452414602,2.53,1951.7,1951.0,7.40099814]
[1772452416239,3.81097839,1951.7,1951.0,7.40099814]
[1772452416396,1e-08,1952.1,1951.3,6.11860791]
[1772452416712,7.2361174,1952.1,1951.5,6.11860791]
[1772452417075,0.002,1951.6,1951.3,6.11860791]
[1772452418082,0.002,1951.6,1951.1,6.11960791]
[1772452418479,0.002,1951.6,1951.1,7.40088189]
[1772452420713,0.002,1951.6,1951.2,6.11860791]
[1772452423202,0.002,1951.6,1951.4,6.11860791]
[1772452424913,0.002,1951.7,1951.4,6.11860791]
[1772452425302,0.002,1951.7,1951.5,7.39967375]
[1772452429515,0.002,1951.6,1951.5,7.39967375]
[1772452430128,0.002,1951.6,1950.6,12.38284838]
[1772452430129,5.66597635,1951.6,1950.6,12.38284838]
[1772452430423,5.66397635,1951.4,1950.4,1.28275895]
[1772452432002,5.66397635,1951.2,1950.5,1.3502117]
[1772452432325,5.66397635,1951.2,1950.4,7.14907133]
[1772452433827,5.66397635,1951.2,1950.5,1.3502117]
[1772452434005,5.66397635,1951.0,1950.5,1.3502117]
[1772452434417,5.66397635,1951.0,1950.6,0.002]
[1772452435212,5.66397635,1951.2,1950.7,1.3502117]
[1772452435427,6.94521719,1951.3,1950.7,1.3482117]
[1772452435616,6.94521719,1951.3,1950.7,1.3502117]
[1772452436413,6.94521719,1951.3,1950.8,0.002]
[1772452436700,5.66397635,1951.3,1950.8,0.002]
[1772452436903,6.9451783,1951.3,1950.8,0.002]
[1772452437329,5.66397635,1951.3,1950.8,0.002]
[1772452437540,0.002,1951.6,1950.9,5.86631238]
[1772452437834,0.002,1951.9,1951.2,5.86631238]
[1772452438606,0.002,1951.9,1951.3,7.14750953]
[1772452439332,0.002,1951.9,1951.4,1.3462117]
[1772452440039,0.002,1951.9,1951.4,7.21252408]
[1772452440551,0.002,1951.9,1951.5,1.28106584]
[1772452440745,0.002,1951.9,1951.4,1.3462117]
[1772452440909,5.66597635,1951.9,1951.4,2.62734129]
[1772452441112,5.66597635,1951.9,1951.5,0.001]
[1772452441312,0.002,1951.8,1951.5,0.001]
[1772452441848,5.66597635,1951.8,1951.5,0.001]
[1772452442052,5.66397635,1951.6,1951.2,0.001]
[1772452442205,5.66397635,1951.6,1951.2,1.3472117]
[1772452442609,5.66397635,1951.6,1951.2,0.001]
[1772452442610,5.66397635,1951.4,1951.2,0.001]
[1772452443539,5.66397635,1951.2,1950.4,0.001]
[1772452443839,1.22580778,1951.3,1950.5,1.3462117]
[1772452443840,5.66397635,1951.0,1950.5,1.3462117]
[1772452444045,5.66397635,1951.0,1950.4,0.001]
[1772452444046,6.88978413,1951.0,1950.4,0.001]
[1772452444211,6.88978413,1951.0,1950.4,1.3472117]
[1772452445125,1.28145983,1950.9,1950.4,1.3472117]
[1772452445324,5.66397635,1950.8,1950.4,1.3472117]
[1772452446515,2.514,1950.7,1950.4,1.3472117]
[1772452446919,2.514,1950.7,1950.4,2.62899549]
[1772452447137,6.945418,1951.0,1950.4,2.62899348]
[1772452447447,2.514,1950.9,1950.4,2.62899348]
[1772452447816,5.66397635,1950.8,1950.4,1.3472117]
[1772452448337,5.66397635,1950.8,1950.1,0.001]
[1772452448711,6.88978413,1950.8,1950.1,0.001]
[1772452449216,5.66397635,1950.6,1950.1,0.001]
[1772452450023,1.28159122,1950.7,1949.9,0.001]
[1772452450024,5.66397635,1950.4,1949.9,0.001]
[1772452450232,5.66397635,1950.2,1949.7,0.001]
[1772452451342,5.66397635,1950.0,1949.5,0.001]
[1772452451521,1.28198553,1950.1,1949.0,0.00153886]
[1772452451522,5.66397635,1949.8,1949.0,1.28419922]
[1772452451726,5.66397635,1949.6,1949.0,1.28419922]
[1772452452346,8.17897635,1949.6,1949.0,1.28419922]
[1772452453015,5.66397635,1949.9,1949.0,7.1505116]
[1772452453243,2.515,1949.8,1949.0,7.1505116]
[1772452453625,2.515,1949.8,1949.1,5.81862028]
[1772452453824,2.515,1950.1,1949.1,5.81862028]
[1772452454242,2.515,1950.1,1949.8,0.001]
[1772452454770,5.12743163,1950.3,1949.8,0.001]
[1772452454771,6.019533,1950.3,1949.8,0.001]
[1772452455050,2.515,1950.2,1949.8,0.001]
[1772452456329,3.79692077,1950.2,1949.8,0.001]
[1772452456952,9.81645377,1950.2,1949.8,0.001]
[1772452457276,8.534533,1950.2,1949.8,0.001]
[1772452457545,9.81645702,1950.2,1949.8,0.001]
[1772452457746,8.534533,1950.2,1949.8,0.001]
[1772452458050,2.515,1950.2,1949.8,0.001]
[1772452458973,7.22436847,1950.8,1949.8,5.57786465]
[1772452459149,2.517,1950.5,1949.8,5.57786465]
[1772452460063,3.79875166,1950.5,1949.9,1.28211703]
[1772452460356,9.74159461,1950.5,1949.9,1.28211703]
[1772452462167,5.94284295,1950.4,1949.8,1.28314324]
[1772452463067,5.94284295,1950.4,1949.8,0.001]
[1772452463453,5.94284295,1950.4,1949.8,1.28317389]
[1772452464253,7.22465163,1950.4,1949.8,0.001]
[1772452464550,5.94284295,1950.4,1949.8,5.57786465]
[1772452465266,2.517,1950.5,1949.8,5.57786465]
[1772452466239,2.517,1950.5,1950.0,5.57686465]
[1772452466854,2.517,1950.7,1950.0,5.57686465]
[1772452468046,0.002,1950.4,1950.0,5.57686465]
[1772452468442,0.002,1950.4,1950.1,6.85885018]
[1772452469871,0.00153886,1951.0,1950.2,5.57686465]
[1772452470070,0.00153886,1951.0,1950.4,5.57686465]
[1772452470445,0.00153886,1951.0,1950.6,5.57686465]
[1772452470644,0.002,1951.3,1950.6,6.80267243]
[1772452471174,0.002,1951.6,1950.7,5.57686465]
[1772452471766,7.22584825,1951.6,1950.5,6.85858728]
[1772452474571,5.94284295,1951.4,1950.3,6.85871872]
[1772452477468,5.94284295,1951.2,1950.3,6.85871872]
[1772452477676,5.94284295,1951.0,1950.3,6.85871872]
[1772452478049,5.94284295,1951.0,1950.3,1.28185407]
[1772452479165,5.94284295,1951.0,1950.3,6.85871872]
[1772452480352,5.94284295,1951.0,1950.4,5.57786465]
[1772452481160,7.22424132,1951.0,1950.4,5.57786465]
[1772452481575,5.94284295,1951.0,1950.5,1.28172263]
[1772452482554,7.22423925,1951.0,1950.5,1.28172263]
[1772452482774,7.22423925,1951.0,1950.4,0.001]
[1772452483079,7.22423925,1951.0,1950.3,0.001]
[1772452483879,5.94284295,1950.8,1950.3,0.001]
[1772452484457,5.94284295,1950.5,1950.0,0.00153886]
[1772452484647,5.94284295,1950.3,1950.0,0.00153886]
[1772452486470,7.22475016,1950.3,1950.0,0.00153886]
[1772452489082,7.22475016,1950.3,1949.8,0.001]
[1772452489857,7.22475016,1950.3,1949.6,0.001]
[1772452490082,5.26250111,1950.1,1949.6,0.001]
[1772452490287,5.26250111,1949.9,1949.6,0.001]
[1772452490478,5.26250111,1949.9,1949.5,0.001]
[1772452492691,6.54461814,1949.9,1949.8,0.001]
[1772452492891,1.28394598,1950.2,1949.8,0.001]
[1772452493067,2.519,1950.1,1949.8,0.001]
[1772452495895,0.002,1950.2,1949.8,0.001]
[1772452496099,2.521,1950.1,1949.8,0.001]
[1772452496599,7.78350111,1950.1,1949.8,0.001]
[1772452497794,5.26250111,1950.0,1949.8,0.001]
[1772452498001,6.54461814,1949.9,1949.7,0.001]
[1772452498883,6.54461814,1949.9,1949.5,0.001]
[1772452500903,1.28209766,1950.0,1949.5,0.001]
[1772452501079,2.525,1949.8,1949.5,5.50914088]
[1772452501273,2.525,1949.8,1949.3,0.001]
[1772452501274,2.526,1949.7,1949.3,0.001]
[1772452501475,5.26250111,1949.8,1949.3,0.001]
[1772452501476,5.26250111,1950.0,1949.3,5.50914088]
[1772452501687,2.526,1949.8,1949.3,5.50914088]
[1772452501906,2.528,1950.0,1949.3,5.50914088]
[1772452502200,7.79050111,1950.0,1949.3,5.50914088]
[1772452502394,5.26250111,1949.9,1949.3,5.50914088]
[1772452504286,6.54465588,1949.9,1949.4,1.28244588]
[1772452504599,9.06965588,1949.9,1949.4,6.79058676]
[1772452505124,9.06965588,1949.9,1949.4,5.50814088]
[1772452505580,3.80715477,1949.9,1949.4,5.50814088]
[1772452506109,2.525,1949.9,1949.4,5.50914088]
[1772452507207,2.525,1949.9,1949.5,1.28238009]
[1772452507711,2.525,1949.9,1949.6,5.50814088]
[1772452508209,3.80712094,1949.9,1949.6,5.50814088]
[1772452508410,5.26250111,1949.8,1949.4,0.001]
[1772452509181,6.54470407,1949.8,1949.4,0.001]
[1772452510598,3.8071624,1949.9,1949.4,5.50914088]
[1772452511014,5.12970207,1950.2,1949.4,5.50914088]
[1772452511015,2.53,1950.2,1949.4,5.50914088]
[1772452511308,3.811924,1950.2,1949.4,5.50914088]
[1772452511884,9.07442511,1950.2,1949.4,5.50914088]
[1772452512086,9.07442511,1950.2,1949.5,6.79052097]
[1772452512087,6.54452113,1950.1,1949.5,6.79052097]
[1772452512314,3.81192457,1950.2,1949.5,6.79052097]
[1772452512680,2.53,1950.2,1949.5,6.79052097]
[1772452513075,3.81193991,1950.2,1949.5,6.79052097]
[1772452513410,1.28393991,1950.2,1949.5,6.79052097]
[1772452513918,0.002,1950.2,1949.5,6.79052097]
[1772452514288,2.529,1950.5,1949.7,5.25888213]
[1772452514289,0.002,1950.5,1949.7,5.25888213]
[1772452515112,0.002,1950.5,1949.8,5.25888213]
[1772452515589,0.00153886,1951.0,1950.3,5.25888213]
[1772452515790,0.00153886,1951.0,1950.4,5.25888213]
[1772452516206,0.00153886,1951.0,1950.5,6.54060476]
[1772452519015,0.002,1950.7,1950.5,6.54060476]
[1772452520230,0.002,1950.7,1950.3,6.5308836]
[1772452520435,0.002,1950.7,1950.3,1.28185407]
[1772452522379,5.23197989,1950.7,1950.1,6.53097354]
[1772452522499,0.002,1950.7,1950.1,6.53097354]
[1772452525018,0.002,1950.7,1950.1,3.21994401]
[1772452525221,0.002,1950.7,1950.2,5.24902953]
[1772452527362,0.002,1950.7,1950.3,1.28185407]
[1772452527564,0.002,1950.7,1950.4,5.24902953]
[1772452529257,0.002,1950.7,1950.5,5.24902953]
[1772452530371,0.002,1950.7,1950.6,1.28165692]
[1772452533663,0.002,1950.7,1950.2,0.001]
[1772452533664,5.23197989,1950.7,1949.9,1.28209068]
[1772452533873,5.23197989,1950.7,1950.0,1.28504927]
[1772452534071,5.23197989,1950.7,1950.0,0.003]
[1772452534244,5.22997989,1950.6,1950.0,0.003]
[1772452534578,5.22997989,1950.6,1950.0,0.001]
[1772452534892,5.22997989,1950.6,1949.7,1.28223574]
[1772452535044,5.22997989,1950.4,1949.7,1.28223574]
[1772452535962,5.22997989,1950.4,1949.8,5.25102953]
[1772452537049,5.22997989,1950.4,1949.9,1.28211703]
[1772452537248,6.51176875,1950.4,1949.9,1.28211703]
[1772452538204,5.22997989,1950.6,1950.0,5.25102953]
[1772452539064,0.002,1950.7,1950.1,6.53101506]
[1772452539260,6.51357249,1950.7,1950.1,6.53301506]
[1772452539586,8.23206733,1950.7,1949.7,1.28224855]
[1772452539884,5.22997989,1950.6,1949.8,0.002]
[1772452541660,5.22997989,1950.4,1949.8,0.002]
[1772452543690,1.28185407,1950.3,1949.9,0.001]
[1772452544563,6.51183396,1950.3,1949.9,0.001]
[1772452544765,7.73597989,1950.5,1950.0,0.002]
[1772452545204,2.506,1950.5,1950.1,0.002]
[1772452545610,2.506,1950.5,1950.2,0.002]
[1772452545817,2.506,1950.5,1950.1,1.28398553]
[1772452546418,5.22997989,1950.4,1949.9,0.001]
[1772452546594,5.22997989,1950.4,1949.9,1.28311203]
[1772452547797,6.51183327,1950.4,1949.9,0.001]
[1772452549715,6.51183327,1950.4,1950.0,0.002]
[1772452551625,6.51183327,1950.4,1949.9,0.001]
[1772452551927,6.51183327,1950.4,1949.9,0.003]
[1772452552305,6.51183327,1950.4,1949.9,0.001]
[1772452553819,6.51183327,1950.4,1950.0,0.002]
[1772452554719,5.22997989,1950.4,1950.1,0.002]
[1772452555018,4.99867466,1950.3,1950.0,0.002]
[1772452555914,4.99867466,1950.3,1949.9,0.001]
[1772452556118,4.99867466,1950.3,1950.0,0.001]
[1772452556442,6.22893004,1950.3,1949.8,0.001]
[1772452556821,4.99867466,1950.1,1949.8,0.001]
[1772452557051,4.99867466,1949.9,1949.8,0.001]
[1772452557338,4.99867466,1949.9,1949.3,0.001]
[1772452559042,4.99867466,1949.7,1949.3,0.001]
[1772452559245,1.28218278,1949.8,1949.3,0.001]
[1772452559246,7.51467466,1949.6,1949.3,0.001]
[1772452560447,2.516,1949.6,1949.3,0.001]
[1772452560928,7.51467466,1949.6,1949.3,0.001]
[1772452561253,4.99867466,1949.5,1949.3,0.001]
[1772452561544,6.28106053,1949.5,1949.3,0.001]
[1772452561917,4.99867466,1949.5,1949.3,0.001]
[1772452562422,6.28105774,1949.5,1949.3,0.001]
[1772452562816,4.99867466,1949.4,1949.3,0.001]
[1772452563447,6.28112054,1949.4,1949.1,0.001]
[1772452563650,4.99867466,1949.2,1948.7,1.28286905]
[1772452564759,4.99867466,1949.2,1948.6,6.2686998]
[1772452565554,4.99867466,1948.7,1947.7,4.98577765]
[1772452565740,4.99867466,1948.4,1947.6,1.2836299]
[1772452566324,4.99867466,1948.4,1947.6,5.13452224]
[1772452566524,4.99867466,1948.4,1947.9,1.28340713]
[1772452566753,4.99867466,1948.4,1947.8,6.26922733]
[1772452567063,4.99867466,1948.4,1947.8,6.269249]
[1772452567266,4.99867466,1948.4,1947.8,6.26924393]
[1772452567425,6.28183944,1948.4,1947.8,6.26924393]
[1772452567647,4.99867466,1948.4,1947.8,6.26924393]
[1772452567883,6.28179357,1948.4,1947.8,6.26924393]
[1772452568370,4.99867466,1948.7,1948.0,4.98731651]
[1772452568679,8.80049338,1948.9,1948.0,4.98731651]
[1772452569058,8.80049338,1948.9,1948.7,0.001]
[1772452569866,8.80049338,1948.9,1948.5,0.001]
[1772452570263,4.99867466,1948.9,1948.5,0.001]
[1772452570584,1.28276234,1949.0,1948.5,0.001]
[1772452571381,10.13134605,1949.1,1948.5,0.001]
[1772452571382,5.00067466,1949.1,1948.5,0.001]
[1772452571689,5.00067466,1949.1,1948.5,6.26981034]
[1772452571690,6.28332867,1949.1,1948.5,6.26981034]
[1772452572695,5.00067466,1949.1,1948.5,6.26981034]
[1772452572882,6.28331827,1949.1,1948.5,6.26981034]
[1772452573066,5.00067466,1949.1,1948.5,6.26981034]
[1772452573669,6.28332463,1949.1,1948.5,6.26981034]
[1772452574391,4.92108687,1948.8,1948.0,5.29842688]
[1772452574593,4.92108687,1948.5,1948.0,0.00153886]
[1772452574885,4.92108687,1948.5,1947.7,5.29688802]
[1772452575057,4.92108687,1948.5,1947.6,1.28360362]
[1772452575259,1.22825538,1948.3,1947.5,6.5805525]
[1772452575458,4.92108687,1948.2,1947.5,6.5805525]
[1772452575692,1.28330167,1948.1,1947.4,5.13498871]
[1772452575909,4.92108687,1948.0,1947.4,5.13498871]
[1772452576071,7.44308687,1948.2,1947.5,5.29688802]
[1772452576275,1.28303823,1948.5,1947.5,5.29688802]
[1772452576457,8.72609893,1948.6,1947.5,5.29688802]
[1772452576663,2.522,1948.6,1947.5,5.29688802]
[1772452576897,4.92108687,1948.5,1947.5,5.29688802]
[1772452577598,3.80497863,1948.6,1947.5,5.29688802]
[1772452577771,5.19796523,1948.5,1947.7,4.91755696]
[1772452578907,1.22825538,1948.9,1947.6,3.23063113]
[1772452578908,6.4822151,1949.0,1947.9,4.91755696]
[1772452579201,6.48221464,1949.0,1947.9,4.91755696]
[1772452579391,5.19950409,1949.0,1947.9,4.91755696]
[1772452579706,6.48222349,1949.0,1948.2,6.20079276]
[1772452580710,6.48222349,1949.0,1948.2,8.14979276]
[1772452581100,0.00153886,1949.0,1948.3,4.91755696]
[1772452581307,0.002,1949.1,1948.5,4.91755696]
[1772452581917,0.001,1948.9,1948.6,6.20052935]
[1772452582218,0.001,1948.9,1948.7,1.95]
[1772452582411,0.001,1948.9,1948.7,6.86755696]
[1772452582710,0.001,1948.9,1948.7,6.86855696]
[1772452582900,0.002,1949.1,1948.8,4.91755696]
[1772452583617,0.002,1949.1,1948.8,6.87155696]
[1772452584516,0.002,1949.1,1949.0,4.91755696]
[1772452585294,0.002,1949.4,1949.0,4.91755696]
[1772452586516,0.002,1949.4,1949.1,3.23864327]
[1772452586715,0.002,1949.4,1949.1,8.15620023]
[1772452589098,0.002,1949.4,1949.1,3.23864327]
[1772452589290,0.002,1949.4,1949.1,1.96]
[1772452590519,0.002,1949.4,1949.2,1.28257746]
[1772452590733,0.002,1949.4,1948.9,4.91755696]
[1772452590898,0.002,1949.4,1948.9,8.16133185]
[1772452593295,0.002,1949.4,1949.0,4.91755696]
[1772452594333,0.001,1949.3,1949.0,4.91755696]
[1772452595236,0.001,1949.3,1949.1,6.20020023]
[1772452595440,0.002,1949.4,1949.2,6.88255696]
[1772452596527,0.00153886,1950.0,1949.5,4.91755696]
[1772452596719,0.00153886,1950.0,1949.7,4.91755696]
[1772452597349,0.00153886,1950.0,1949.8,1.28218278]
[1772452597840,0.00153886,1950.0,1949.8,3.25018278]
[1772452598214,5.19950409,1950.0,1949.3,1.968]
[1772452598507,5.19950409,1950.0,1949.3,6.88555696]
[1772452599920,5.19796523,1949.8,1949.1,10.04786683]
[1772452600126,5.19796523,1949.8,1949.2,1.969]
[1772452600336,5.19796523,1949.8,1949.2,6.88655696]
[1772452601143,0.00153886,1950.0,1949.3,4.91755696]
[1772452601732,0.00153886,1950.0,1949.4,6.88955696]
[1772452601934,0.00153886,1950.0,1949.5,1.28238009]
[1772452602446,0.00153886,1950.0,1949.6,4.91755696]
[1772452602649,0.00153886,1950.0,1949.5,1.28238009]
[1772452602821,5.19950409,1950.0,1949.2,1.973]
[1772452603022,1.71970301,1949.9,1949.0,1.28266917]
[1772452603244,5.19796523,1949.8,1949.1,1.973]
[1772452603750,5.19796523,1949.8,1948.9,3.25472942]
[1772452604144,5.19796523,1949.6,1948.9,3.25472942]
[1772452604942,5.19796523,1949.6,1948.9,1.28272942]
[1772452605150,5.19796523,1949.6,1948.8,1.972]
[1772452605529,1.28223441,1949.8,1948.9,4.91755696]
[1772452606042,6.48019964,1949.8,1949.0,1.972]
[1772452606240,6.48019964,1949.8,1949.1,1.28264327]
[1772452606429,0.002,1949.5,1949.1,1.28264327]
[1772452608721,0.002,1949.5,1949.1,5.8998214]
[1772452609356,0.002,1949.5,1949.2,6.59217813]
[1772452610130,0.002,1949.5,1949.1,1.28264327]
[1772452610369,4.95901927,1949.5,1949.1,1.28264327]
[1772452613136,4.95901927,1949.5,1949.0,7.10857308]
[1772452614056,4.95901927,1949.5,1949.0,11.72575121]
[1772452614057,0.002,1949.5,1949.0,11.72575121]
[1772452614858,0.002,1949.5,1949.1,4.61717813]
[1772452615156,0.002,1949.5,1949.1,5.89980177]
[1772452615346,0.002,1949.5,1949.1,1.28262364]
[1772452616039,0.002,1949.5,1949.1,3.26262364]
[1772452617347,0.002,1949.5,1949.2,4.61717813]
[1772452617931,0.002,1949.6,1949.3,4.61717813]
[1772452618133,0.002,1949.6,1949.4,1.982]
[1772452618961,0.002,1949.6,1949.4,6.59917813]
[1772452620123,0.002,1949.6,1949.5,1.28238009]
[1772452620866,4.95701927,1949.4,1948.7,0.001]
[1772452621860,0.002,1949.5,1948.7,0.001]
[1772452621861,4.95701927,1949.2,1948.7,0.001]
[1772452622036,4.95701927,1949.1,1948.7,0.001]
[1772452623327,5.12980533,1949.4,1948.9,0.001]
[1772452623328,6.23949796,1949.4,1948.9,0.001]
[1772452623762,4.95701927,1949.3,1948.9,0.001]
[1772452623978,4.95701927,1949.2,1948.7,1.28390655]
[1772452624279,4.95701927,1949.4,1948.7,1.28390655]
[1772452624476,0.002,1949.5,1948.8,4.61717813]
[1772452624850,1.28438151,1949.5,1948.8,4.61717813]
[1772452625049,6.24140078,1949.5,1948.8,4.61717813]
[1772452626163,4.95701927,1949.4,1948.7,3.26585569]
[1772452626564,1.28438151,1949.5,1948.8,4.61717813]
[1772452627053,6.24140078,1949.5,1948.8,4.61717813]
[1772452627869,4.95701927,1949.4,1948.8,4.61717813]
[1772452628069,1.28251167,1949.3,1948.7,3.26685569]
[1772452628384,6.23953094,1949.3,1948.7,1.28385569]
[1772452628582,6.23953094,1949.3,1948.7,3.26685569]
[1772452629682,4.95701927,1949.3,1948.7,3.26685569]
[1772452630469,4.95701927,1949.2,1948.7,1.984]
[1772452630674,4.95701927,1949.2,1948.7,3.26690565]
[1772452632366,4.95701927,1949.2,1948.7,3.26990565]
[1772452633483,4.95701927,1949.2,1948.8,0.001]
[1772452633682,4.56914477,1949.1,1948.8,0.001]
[1772452635457,0.002,1949.2,1948.8,0.001]
[1772452635792,0.002,1949.2,1948.8,4.52561131]
[1772452636554,0.002,1949.2,1948.9,1.28277489]
[1772452637357,0.002,1949.2,1948.8,5.80840158]
[1772452637553,0.002,1949.2,1948.8,7.79640158]
[1772452637785,0.002,1949.2,1948.8,3.27179027]
[1772452638890,0.002,1949.2,1948.8,8.15893714]
[1772452640713,0.002,1949.2,1948.8,6.17093714]
[1772452640913,0.002,1949.2,1948.8,8.16193714]
[1772452642108,0.002,1949.2,1948.9,4.88714687]
[1772452642268,0.002,1949.5,1948.9,4.88714687]
[1772452642873,0.002,1949.5,1949.1,4.88714687]
[1772452643098,0.002,1949.5,1949.1,6.88014687]
[1772452645097,0.002,1949.5,1949.1,8.1627552]
[1772452646201,4.80096029,1949.5,1948.9,0.001]
[1772452646396,4.80096029,1949.5,1948.9,1.997]
[1772452646599,4.80096029,1949.4,1948.9,1.997]
[1772452646819,4.80096029,1949.4,1948.8,0.001]
[1772452647002,4.79896029,1949.1,1948.8,0.001]
[1772452647309,4.79896029,1949.1,1948.7,0.001]
[1772452649582,6.08161175,1949.1,1948.7,0.001]
[1772452650212,4.79896029,1949.1,1948.7,0.001]
[1772452650385,4.79896029,1949.2,1948.7,0.001]
[1772452650586,4.79896029,1949.2,1948.7,1.997]
[1772452651086,4.79896029,1949.2,1948.7,0.001]
[1772452651996,6.08160356,1949.1,1948.7,0.001]
[1772452652516,4.79896029,1949.1,1948.7,0.001]
[1772452652717,1.28262724,1949.2,1948.7,0.001]
[1772452654016,4.79896029,1949.1,1948.7,0.001]
[1772452655517,9.92914575,1949.3,1948.7,0.001]
[1772452656195,9.92914575,1949.3,1948.7,4.88814687]
[1772452656397,4.79896029,1949.2,1948.7,0.001]
[1772452657326,4.79896029,1949.2,1948.5,0.001]
[1772452658211,4.79896029,1949.0,1948.5,0.001]
[1772452658411,4.80096029,1949.0,1948.5,0.001]
[1772452658613,4.80096029,1949.0,1948.7,0.001]
[1772452658811,0.002,1949.0,1948.7,0.001]
[1772452659217,0.002,1949.0,1948.7,4.88814687]
[1772452659401,0.002,1949.3,1948.7,4.88814687]
[1772452660228,0.002,1949.3,1948.9,4.88714687]
[1772452660424,0.002,1949.3,1949.1,4.88714687]
[1772452662222,0.002,1949.3,1949.2,1.28257746]
[1772452662400,0.002,1949.3,1949.1,1.28259456]
[1772452662729,0.002,1949.3,1948.9,7.12600876]
[1772452663030,0.002,1949.3,1948.9,12.01315563]
[1772452663209,0.002,1949.3,1948.9,12.01415563]
[1772452663394,0.002,1949.3,1949.0,4.88714687]
[1772452663794,4.80096029,1949.3,1948.8,1.28279074]
[1772452664326,6.08347259,1949.3,1948.8,1.28279074]
[1772452664525,4.79896029,1949.2,1948.7,1.28385533]
[1772452664821,4.79896029,1949.2,1948.7,1.28390242]
[1772452665602,4.79896029,1949.2,1948.7,3.28190242]
[1772452666302,1.28264327,1949.1,1948.7,0.001]
[1772452668329,6.0815914,1949.2,1948.7,0.001]
[1772452670807,6.0815914,1949.2,1948.8,0.001]
[1772452671006,4.57648563,1949.1,1948.8,0.001]
[1772452671532,0.002,1949.1,1948.8,0.001]
[1772452672632,0.002,1949.1,1948.9,4.57815897]
[1772452672930,0.002,1949.1,1948.9,3.28477377]
[1772452673838,0.002,1949.1,1948.9,2.002]
[1772452674021,4.57648563,1949.1,1948.9,2.002]
[1772452674416,4.57648563,1949.1,1948.8,0.001]
[1772452675133,5.85915545,1949.1,1948.8,0.001]
[1772452675338,4.57448563,1949.0,1948.8,0.001]
[1772452676626,0.002,1949.1,1948.8,0.001]
[1772452676936,4.57648563,1949.1,1948.8,0.001]
[1772452678133,5.85913136,1949.1,1948.8,0.001]
[1772452679303,4.57448563,1949.0,1948.8,0.001]
[1772452679835,0.002,1949.1,1948.8,4.57915897]
[1772452680557,0.002,1949.2,1948.9,4.57815897]
[1772452681626,0.002,1949.2,1949.1,4.57815897]
[1772452682233,0.002,1949.2,1949.0,1.28270908]
[1772452683051,0.002,1949.2,1949.0,2.007]
[1772452683353,0.002,1949.1,1949.0,2.007]
[1772452683853,0.002,1949.1,1949.0,3.28970908]
[1772452684919,0.002,1949.1,1948.9,7.86987948]
[1772452688457,0.002,1949.1,1949.0,2.015]
[1772452689455,0.002,1949.1,1949.0,3.29770908]
[1772452691858,0.002,1949.1,1949.0,7.87586805]
[1772452692058,0.002,1949.1,1949.0,5.86086805]
[1772452692254,0.002,1949.1,1949.0,7.88086805]
[1772452693535,0.002,1949.1,1949.0,2.022]
[1772452694446,0.002,1949.1,1948.9,1.28277489]
[1772452694657,0.002,1949.1,1949.0,2.023]
[1772452696382,0.002,1949.1,1948.9,1.28277489]
[1772452696588,0.002,1949.1,1949.0,2.025]
[1772452696758,0.002,1949.1,1949.0,2.026]
[1772452698080,0.002,1949.1,1949.0,0.001]
[1772452698255,0.002,1949.1,1949.0,2.028]
[1772452698451,0.002,1949.1,1949.0,7.96838757]
[1772452698784,0.002,1949.2,1949.0,7.96838757]
[1772452698986,0.002,1949.2,1949.1,4.65767849]